bitfinex-derivatives/quotes_BTCF0:USTF0_20240913
["timestamp","ask_amount","ask_price","bid_price","bid_amount"]
[1726215716082,0.086085,58079.0,58078.0,0.06858552]
[1726215716277,0.086086,58078.0,58077.0,0.06858552]
[1726215716483,0.086086,58078.0,58076.0,0.05143836]
[1726215716484,0.086088,58077.0,58076.0,0.05143836]
[1726215716688,0.086089,58076.0,58075.0,0.05143836]
[1726215716986,0.086089,58076.0,58075.0,0.05144569]
[1726215717483,0.086092,58074.0,58073.0,0.05144569]
[1726215718375,0.086094,58073.0,58072.0,0.05144569]
[1726215718672,0.446894,58073.0,58072.0,0.05144569]
[1726215718874,0.086094,58073.0,58072.0,0.05144569]
[1726215719076,0.446894,58073.0,58072.0,0.05144569]
[1726215720086,0.447894,58073.0,58072.0,0.05744569]
[1726215720480,0.447894,58073.0,58072.0,0.006]
[1726215721282,0.447894,58073.0,58072.0,0.011]
[1726215725590,0.808694,58073.0,58072.0,0.011]
[1726215727292,0.894788,58073.0,58072.0,0.011]
[1726215727486,1.014788,58073.0,58072.0,0.011]
[1726215728792,0.293188,58073.0,58072.0,0.011]
[1726215728995,1.014788,58073.0,58072.0,0.011]
[1726215729789,0.894788,58073.0,58072.0,0.011]
[1726215730188,0.173188,58073.0,58072.0,0.011]
[1726215730596,0.894788,58073.0,58072.0,0.011]
[1726215731387,0.173188,58073.0,58072.0,0.011]
[1726215731591,0.894788,58073.0,58072.0,0.011]
[1726215735400,1.014788,58073.0,58072.0,0.011]
[1726215738199,0.293188,58073.0,58072.0,0.011]
[1726215738401,1.100882,58073.0,58072.0,0.011]
[1726215741190,0.894788,58073.0,58072.0,0.011]
[1726215746403,0.173188,58073.0,58072.0,0.011]
[1726215746601,0.894788,58073.0,58072.0,0.011]
[1726215748108,1.014788,58073.0,58072.0,0.011]
[1726215751408,0.894788,58073.0,58072.0,0.011]
[1726215752097,0.808694,58073.0,58072.0,0.06244569]
[1726215752405,0.808694,58073.0,58072.0,0.097095]
[1726215752610,0.808694,58073.0,58072.0,0.267095]
[1726215753105,0.808694,58073.0,58072.0,0.313695]
[1726215753300,0.3618,58073.0,58072.0,0.38228052]
[1726215753607,0.3618,58073.0,58072.0,1.51599431]
[1726215753802,0.3618,58073.0,58072.0,1.53182315]
[1726215754313,0.3618,58073.0,58072.0,1.51602131]
[1726215754515,0.3618,58073.0,58072.0,1.430295]
[1726215755596,0.3618,58073.0,58072.0,1.44793262]
[1726215757204,0.3618,58073.0,58072.0,1.430295]
[1726215757709,0.3618,58073.0,58072.0,0.830295]
[1726215757908,0.3618,58073.0,58072.0,1.430295]
[1726215758110,0.3618,58073.0,58072.0,0.830295]
[1726215758304,0.3618,58073.0,58072.0,0.313695]
[1726215758500,0.3618,58073.0,58072.0,0.830295]
[1726215759702,0.3618,58073.0,58072.0,0.89880814]
[1726215760511,0.3618,58073.0,58072.0,0.38220814]
[1726215761410,0.3618,58073.0,58072.0,0.313695]
[1726215764317,0.3618,58073.0,58072.0,0.36507086]
[1726215764701,0.3618,58073.0,58072.0,0.313695]
[1726215765410,0.3618,58073.0,58072.0,0.36506766]
[1726215766206,0.447894,58073.0,58072.0,0.36506766]
[1726215766412,0.447894,58073.0,58072.0,0.217095]
[1726215767112,0.533988,58073.0,58072.0,0.011]
[1726215768608,0.447894,58073.0,58072.0,0.011]
[1726215769412,0.087094,58073.0,58072.0,0.011]
[1726215769610,0.808694,58073.0,58072.0,0.011]
[1726215771520,0.087094,58073.0,58072.0,0.011]
[1726215771711,0.808694,58073.0,58072.0,0.011]
[1726215774115,0.894788,58073.0,58072.0,0.011]
[1726215775020,1.497482,58073.0,58072.0,0.011]
[1726215775816,0.894788,58073.0,58072.0,0.011]
[1726215776616,0.980882,58073.0,58072.0,0.011]
[1726215779019,0.894788,58073.0,58072.0,0.011]
[1726215779417,2.131388,58073.0,58072.0,0.011]
[1726215779926,0.086103,58067.0,58066.0,0.004]
[1726215780128,0.4808,58067.0,58061.0,0.05137266]
[1726215780320,0.3608,58062.0,58061.0,0.05137266]
[1726215780522,0.3608,58062.0,58061.0,0.12]
[1726215781118,0.086113,58060.0,58059.0,0.05141199]
[1726215781439,0.086113,58060.0,58058.0,0.206116]
[1726215781440,0.086114,58059.0,58058.0,0.25752799]
[1726215782126,0.086114,58059.0,58058.0,0.206116]
[1726215782527,0.001,58060.0,58059.0,0.007]
[1726215782732,0.001,58060.0,58059.0,0.213114]
[1726215782923,0.001,58060.0,58059.0,0.26451633]
[1726215783237,0.001,58060.0,58059.0,0.213114]
[1726215783427,0.002,58060.0,58059.0,1.415948]
[1726215783732,0.002,58060.0,58059.0,1.631848]
[1726215784138,0.001,58060.0,58059.0,1.624848]
[1726215785035,0.002,58060.0,58059.0,1.64366446]
[1726215786133,0.002,58060.0,58059.0,1.55755046]
[1726215786532,0.002,58060.0,58059.0,1.62608634]
[1726215786931,0.002,58060.0,58059.0,1.58018634]
[1726215787135,0.002,58060.0,58059.0,1.56236988]
[1726215787335,0.002,58060.0,58059.0,0.96236988]
[1726215787746,0.002,58060.0,58059.0,0.377114]
[1726215787944,0.002,58060.0,58059.0,0.893834]
[1726215788140,0.002,58060.0,58059.0,0.377114]
[1726215789345,0.088113,58060.0,58059.0,0.44564988]
[1726215789544,0.088113,58060.0,58059.0,0.207114]
[1726215790040,0.088113,58060.0,58059.0,0.377114]
[1726215791148,0.448913,58060.0,58059.0,0.377114]
[1726215792447,0.448913,58060.0,58059.0,0.44564988]
[1726215792946,0.448913,58060.0,58059.0,0.377114]
[1726215793451,0.448913,58060.0,58059.0,0.44564988]
[1726215795346,0.448913,58060.0,58059.0,0.44570703]
[1726215796247,0.448913,58060.0,58059.0,0.22245389]
[1726215796853,0.448913,58060.0,58059.0,0.05245389]
[1726215798548,0.448913,58060.0,58059.0,0.001]
[1726215800856,0.448913,58060.0,58059.0,0.121]
[1726215801444,0.088113,58060.0,58059.0,0.121]
[1726215801651,0.809713,58060.0,58059.0,0.121]
[1726215802351,0.602834,58059.0,58056.0,0.06859303]
[1726215802550,0.602834,58059.0,58052.0,0.004]
[1726215802551,0.086123,58053.0,58052.0,0.004]
[1726215802855,0.3608,58053.0,58051.0,0.12]
[1726215803058,0.086125,58052.0,58051.0,0.12]
[1726215803947,0.086129,58050.0,58048.0,0.12]
[1726215805259,0.086129,58049.0,58048.0,0.12]
[1726215806254,0.086129,58049.0,58048.0,0.122]
[1726215809048,0.172258,58049.0,58048.0,0.122]
[1726215809256,0.172258,58049.0,58048.0,0.002]
[1726215811361,0.086129,58049.0,58048.0,0.122]
[1726215811750,0.37879421,58052.0,58048.0,0.122]
[1726215811751,0.446925,58052.0,58048.0,0.122]
[1726215811956,0.3608,58052.0,58051.0,0.206126]
[1726215812363,0.3608,58052.0,58051.0,0.376126]
[1726215813867,0.3618,58052.0,58051.0,0.376126]
[1726215814066,0.3618,58052.0,58051.0,0.456126]
[1726215815959,0.3608,58052.0,58051.0,0.458126]
[1726215817760,0.807725,58052.0,58051.0,0.172]
[1726215817963,0.807725,58052.0,58051.0,0.002]
[1726215819271,0.086129,58049.0,58048.0,0.17]
[1726215820469,0.086129,58049.0,58043.0,0.07253387]
[1726215820470,0.086137,58044.0,58043.0,0.004]
[1726215820660,0.086137,58044.0,58039.0,0.008]
[1726215820661,0.3608,58044.0,58039.0,0.008]
[1726215820865,0.44694,58042.0,58041.0,0.2]
[1726215822665,0.80874,58042.0,58041.0,0.2]
[1726215823675,0.80974,58042.0,58041.0,0.202]
[1726215824775,0.80974,58042.0,58041.0,0.002]
[1726215825467,0.80974,58042.0,58041.0,0.172]
[1726215825977,0.82766342,58042.0,58041.0,0.172]
[1726215827882,0.91380342,58042.0,58041.0,0.172]
[1726215828271,0.82766342,58042.0,58041.0,0.172]
[1726215829081,0.91380342,58042.0,58041.0,0.172]
[1726215829680,0.82766342,58042.0,58041.0,0.172]
[1726215830487,0.91380342,58042.0,58041.0,0.172]
[1726215831780,0.19220342,58042.0,58041.0,0.172]
[1726215831982,0.91380342,58042.0,58041.0,0.172]
[1726215835082,0.91380342,58042.0,58041.0,0.002]
[1726215836690,0.80974,58042.0,58041.0,0.002]
[1726215837687,0.80974,58042.0,58041.0,0.0512]
[1726215837889,0.80974,58042.0,58041.0,0.2212]
[1726215838087,0.80974,58042.0,58041.0,0.4212]
[1726215840591,0.7236,58042.0,58041.0,0.507341]
[1726215840986,0.80974,58042.0,58041.0,0.507341]
[1726215841195,0.80974,58042.0,58041.0,0.52492018]
[1726215842491,0.7236,58042.0,58041.0,0.52492018]
[1726215845291,0.80974,58042.0,58041.0,0.507341]
[1726215846191,0.80974,58042.0,58041.0,0.57587487]
[1726215847195,0.80974,58042.0,58041.0,0.507341]
[1726215847695,0.44894,58042.0,58041.0,0.507341]
[1726215847895,0.3628,58042.0,58041.0,0.507341]
[1726215849202,0.44894,58042.0,58041.0,0.507341]
[1726215853701,0.44894,58042.0,58041.0,0.458141]
[1726215856105,0.08814,58042.0,58041.0,0.458141]
[1726215856401,0.44894,58042.0,58041.0,0.458141]
[1726215856708,0.08814,58042.0,58041.0,0.458141]
[1726215857002,0.44894,58042.0,58041.0,0.458141]
[1726215857796,0.44894,58042.0,58041.0,0.172]
[1726215857797,0.53508,58042.0,58041.0,0.172]
[1726215859406,0.53508,58042.0,58041.0,0.24069047]
[1726215860205,0.53508,58042.0,58041.0,0.36069047]
[1726215860399,0.53508,58042.0,58041.0,0.292]
[1726215860805,0.53508,58042.0,58041.0,0.3606986]
[1726215861002,0.53508,58042.0,58041.0,0.292]
[1726215861202,0.53508,58042.0,58041.0,0.36070091]
[1726215862207,0.53508,58042.0,58041.0,0.292]
[1726215863710,0.53508,58042.0,58041.0,0.3607268]
[1726215863898,0.53508,58042.0,58041.0,0.292]
[1726215864909,0.3628,58042.0,58041.0,0.378141]
[1726215865101,0.002,58042.0,58041.0,0.48122748]
[1726215865305,0.3608,58047.0,58046.0,0.086134]
[1726215865605,0.450923,58054.0,58046.0,0.22284051]
[1726215865801,0.3608,58054.0,58053.0,0.27483499]
[1726215866207,0.3608,58054.0,58053.0,0.2747975]
[1726215866409,0.3608,58054.0,58053.0,0.4447975]
[1726215867203,0.3608,58054.0,58053.0,0.376123]
[1726215867808,0.3618,58054.0,58053.0,0.376123]
[1726215868204,0.3618,58054.0,58053.0,0.456123]
[1726215868403,0.3668,58054.0,58053.0,0.456123]
[1726215871315,0.3668,58054.0,58053.0,0.47414161]
[1726215873625,0.006,58054.0,58053.0,0.47414161]
[1726215873810,0.3668,58054.0,58053.0,0.47414161]
[1726215877815,0.006,58054.0,58053.0,0.47414161]
[1726215878023,0.3668,58054.0,58053.0,0.47414161]
[1726215878823,0.006,58054.0,58053.0,0.47414161]
[1726215879020,0.3668,58054.0,58053.0,0.47414161]
[1726215879228,0.3668,58054.0,58053.0,0.30414161]
[1726215887439,0.3638,58054.0,58053.0,0.30414161]
[1726215887941,0.3668,58054.0,58053.0,0.30414161]
[1726215888124,0.3668,58054.0,58053.0,0.086123]
[1726215888438,0.3608,58054.0,58053.0,0.206123]
[1726215888634,0.446922,58054.0,58053.0,0.086123]
[1726215888933,0.446922,58054.0,58053.0,0.206123]
[1726215889832,0.46462471,58054.0,58053.0,0.206123]
[1726215891332,0.46562471,58054.0,58053.0,0.206123]
[1726215892239,0.46562471,58054.0,58053.0,0.2747975]
[1726215892240,0.46762471,58054.0,58053.0,0.2747975]
[1726215892436,0.46762471,58054.0,58053.0,0.206123]
[1726215893139,0.46962471,58054.0,58053.0,0.206123]
[1726215893937,0.47062471,58054.0,58053.0,0.206123]
[1726215894846,0.47162471,58054.0,58053.0,0.206123]
[1726215895346,0.47162471,58054.0,58053.0,0.2747975]
[1726215896245,0.47162471,58054.0,58053.0,0.206123]
[1726215897541,0.172246,58053.0,58052.0,0.0686745]
[1726215897738,0.172246,58053.0,58052.0,0.1886745]
[1726215897940,0.218246,58053.0,58052.0,0.1886745]
[1726215898446,0.218246,58053.0,58052.0,0.12]
[1726215898945,0.224246,58053.0,58052.0,0.12]
[1726215907544,0.172252,58051.0,58050.0,0.17]
[1726215907855,0.533052,58051.0,58050.0,0.17]
[1726215908642,0.534052,58051.0,58050.0,0.17]
[1726215910855,0.447926,58051.0,58050.0,0.17]
[1726215911053,0.447926,58051.0,58050.0,0.256128]
[1726215911650,0.534052,58051.0,58050.0,0.256128]
[1726215911842,0.447926,58051.0,58050.0,0.256128]
[1726215914957,0.808726,58051.0,58050.0,0.256128]
[1726215922258,0.808726,58051.0,58050.0,0.29]
[1726215923157,0.808726,58051.0,58050.0,0.376128]
[1726215925361,0.087126,58051.0,58050.0,0.376128]
[1726215925563,0.808726,58051.0,58050.0,0.376128]
[1726215926967,0.7226,58051.0,58050.0,0.376128]
[1726215927158,0.004,58058.0,58057.0,0.086117]
[1726215927353,0.086113,58060.0,58057.0,0.4808]
[1726215927664,0.086113,58060.0,58059.0,0.086114]
[1726215928664,0.0482,58067.0,58063.0,0.086108]
[1726215928860,0.06548502,58067.0,58066.0,0.12]
[1726215930169,0.15158802,58067.0,58066.0,0.12]
[1726215930361,0.16558802,58067.0,58066.0,0.12]
[1726215931161,0.17958802,58067.0,58066.0,0.12]
[1726215932267,0.09348502,58067.0,58064.0,0.12]
[1726215933164,0.086106,58065.0,58064.0,0.12]
[1726215934468,0.172212,58065.0,58064.0,0.12]
[1726215934981,0.086106,58065.0,58064.0,0.12]
[1726215935275,0.08611,58062.0,58061.0,0.206111]
[1726215936667,0.086112,58061.0,58060.0,0.05141869]
[1726215936872,0.172224,58061.0,58060.0,0.05141869]
[1726215937167,0.086112,58061.0,58060.0,0.05141869]
[1726215938061,0.086112,58061.0,58059.0,0.086114]
[1726215938268,0.446913,58060.0,58059.0,0.086114]
[1726215939458,0.456913,58060.0,58059.0,0.086114]
[1726215940370,0.096113,58060.0,58059.0,0.086114]
[1726215941074,0.1133415,58060.0,58059.0,0.086114]
[1726215941277,0.1233415,58060.0,58059.0,0.086114]
[1726215943468,0.086114,58059.0,58058.0,0.12]
[1726215944762,0.095114,58059.0,58058.0,0.12]
[1726215944963,0.095114,58059.0,58058.0,0.17141869]
[1726215945167,0.095114,58059.0,58058.0,0.206116]
[1726215945369,0.104114,58059.0,58058.0,0.206116]
[1726215945971,0.018,58059.0,58058.0,0.61833469]
[1726215946174,0.018,58059.0,58058.0,0.566916]
[1726215947065,0.104114,58059.0,58058.0,0.566916]
[1726215949071,0.104114,58059.0,58058.0,0.206116]
[1726215951269,0.104114,58059.0,58058.0,0.086116]
[1726215951465,0.104114,58059.0,58058.0,0.206116]
[1726215951791,0.3788,58059.0,58055.0,0.15467826]
[1726215951991,0.3788,58059.0,58058.0,0.0514828]
[1726215952480,0.551028,58059.0,58058.0,0.0514828]
[1726215952671,0.086116,58058.0,58055.0,0.0514828]
[1726215952869,0.086119,58056.0,58054.0,0.0514828]
[1726215953269,0.08612,58055.0,58054.0,0.0514828]
[1726215953471,0.086123,58053.0,58052.0,0.06855826]
[1726215953881,0.086123,58053.0,58052.0,0.18855826]
[1726215955071,0.086123,58053.0,58052.0,0.06855826]
[1726215955374,0.089123,58053.0,58052.0,0.12]
[1726215955581,0.092123,58053.0,58052.0,0.12]
[1726215956283,0.092123,58053.0,58052.0,0.17152069]
[1726215956776,0.10983176,58053.0,58052.0,0.17152069]
[1726215957494,0.10983176,58053.0,58052.0,0.12]
[1726215958085,0.10983176,58053.0,58052.0,0.17152069]
[1726215958580,0.10983176,58053.0,58052.0,0.12]
[1726215958784,0.10983176,58053.0,58052.0,0.17152069]
[1726215958983,0.10983176,58053.0,58052.0,0.25764569]
[1726215960880,0.006,58053.0,58052.0,0.25764569]
[1726215961080,0.006,58053.0,58052.0,0.206125]
[1726215961285,0.006,58053.0,58052.0,0.36080826]
[1726215961492,0.006,58053.0,58052.0,0.29225]
[1726215961788,0.004,58062.0,58052.0,0.82550462]
[1726215961975,0.004,58062.0,58061.0,0.566912]
[1726215962178,0.086106,58065.0,58064.0,0.086107]
[1726215962379,0.086106,58065.0,58064.0,0.206107]
[1726215963080,0.086106,58065.0,58064.0,0.376107]
[1726215963288,0.086106,58065.0,58064.0,0.42757449]
[1726215963980,0.100106,58065.0,58064.0,0.42757449]
[1726215964885,0.114106,58065.0,58064.0,0.42757449]
[1726215966483,0.114106,58065.0,58064.0,0.376107]
[1726215974894,0.028,58065.0,58064.0,0.376107]
[1726215981299,0.3648,58072.0,58067.0,0.086102]
[1726215981300,0.004,58072.0,58067.0,0.086102]
[1726215981505,0.132694,58074.0,58071.0,0.12]
[1726215981506,0.086095,58073.0,58071.0,0.12]
[1726215981690,0.086095,58073.0,58072.0,0.086095]
[1726215981896,0.086095,58073.0,58072.0,0.256095]
[1726215983204,0.10378029,58073.0,58072.0,0.256095]
[1726215983707,0.11778029,58073.0,58072.0,0.256095]
[1726215984405,0.11778029,58073.0,58072.0,0.376095]
[1726215984995,0.47858029,58073.0,58072.0,0.376095]
[1726215985307,0.47858029,58073.0,58072.0,0.377095]
[1726215985700,0.03168529,58073.0,58072.0,0.377095]
[1726215987197,0.01768529,58073.0,58072.0,0.376095]
[1726215987523,0.008,58073.0,58072.0,0.377095]
[1726215990904,0.094094,58073.0,58072.0,0.377095]
[1726215994099,0.094094,58073.0,58072.0,0.171]
[1726215994404,0.180188,58073.0,58072.0,0.171]
[1726215996110,0.180188,58073.0,58072.0,0.001]
[1726215996310,0.094094,58073.0,58072.0,0.121]
[1726215998796,0.454894,58073.0,58072.0,0.121]
[1726216000105,0.094094,58073.0,58072.0,0.121]
[1726216000315,0.454894,58073.0,58072.0,0.121]
[1726216004413,0.094094,58073.0,58072.0,0.121]
[1726216004614,0.454894,58073.0,58072.0,0.121]
[1726216005409,0.094094,58073.0,58072.0,0.121]
[1726216005711,0.454894,58073.0,58072.0,0.121]
[1726216007305,0.094094,58073.0,58072.0,0.121]
[1726216007816,0.454894,58073.0,58072.0,0.121]
[1726216009711,0.094094,58073.0,58072.0,0.121]
[1726216009913,0.454894,58073.0,58072.0,0.121]
[1726216010816,0.094094,58073.0,58072.0,0.121]
[1726216011209,0.454894,58073.0,58072.0,0.121]
[1726216011813,0.094094,58073.0,58072.0,0.121]
[1726216012117,0.454894,58073.0,58072.0,0.291]
[1726216015513,0.454894,58073.0,58072.0,0.377095]
[1726216015718,0.3688,58073.0,58072.0,0.42848879]
[1726216015913,0.008,58073.0,58072.0,0.377095]
[1726216017527,0.008,58073.0,58072.0,0.44574672]
[1726216017926,0.008,58073.0,58072.0,0.377095]
[1726216018225,0.014,58073.0,58072.0,0.44674525]
[1726216018522,0.011,58073.0,58072.0,0.377095]
[1726216019109,0.011,58073.0,58072.0,0.39496535]
[1726216020628,0.097094,58073.0,58072.0,0.377095]
[1726216022625,0.097094,58073.0,58072.0,0.171]
[1726216022927,0.097094,58073.0,58066.0,0.05148846]
[1726216022928,0.0861,58069.0,58066.0,0.05148846]
[1726216023224,1.574494,58073.0,58064.0,0.17]
[1726216023225,0.086106,58065.0,58064.0,0.17]
[1726216023823,0.086106,58065.0,58064.0,0.29]
[1726216025227,0.446906,58065.0,58064.0,0.29]
[1726216025423,0.446906,58065.0,58064.0,0.293]
[1726216025825,0.446906,58065.0,58064.0,0.295]
[1726216026027,0.450906,58065.0,58064.0,0.292]
[1726216027729,0.453906,58065.0,58064.0,0.293]
[1726216027926,0.460906,58065.0,58064.0,0.292]
[1726216028124,0.453906,58065.0,58064.0,0.291]
[1726216028325,0.461906,58065.0,58064.0,0.292]
[1726216028630,0.47966113,58065.0,58064.0,0.292]
[1726216028830,0.48066113,58065.0,58064.0,0.292]
[1726216029328,0.47266113,58065.0,58064.0,0.291]
[1726216029629,0.48266113,58065.0,58064.0,0.292]
[1726216031037,0.48266113,58065.0,58064.0,0.172]
[1726216031235,0.48266113,58065.0,58064.0,0.292]
[1726216033033,0.48266113,58065.0,58064.0,0.172]
[1726216033227,0.48266113,58065.0,58064.0,0.292]
[1726216034735,0.12186113,58065.0,58064.0,0.292]
[1726216034930,0.48266113,58065.0,58064.0,0.292]
[1726216035130,0.56876713,58065.0,58064.0,0.292]
[1726216038437,0.48266113,58065.0,58064.0,0.292]
[1726216043345,0.48266113,58065.0,58064.0,0.378107]
[1726216043753,0.3788,58065.0,58064.0,0.378107]
[1726216044041,0.0917,58078.0,58071.0,0.086097]
[1726216044042,0.086086,58078.0,58071.0,0.086097]
[1726216044242,0.004,58079.0,58070.0,0.12]
[1726216044434,0.086085,58079.0,58078.0,0.202085]
[1726216045042,0.086085,58079.0,58078.0,0.372085]
[1726216045632,0.097085,58079.0,58078.0,0.373085]
[1726216047635,0.097085,58079.0,58078.0,0.374085]
[1726216047838,0.097085,58079.0,58078.0,0.288]
[1726216050741,0.097085,58079.0,58078.0,0.118]
[1726216053240,0.097085,58079.0,58078.0,0.204086]
[1726216067160,0.011,58079.0,58078.0,0.204086]
[1726216069459,0.011,58079.0,58078.0,0.088086]
[1726216069868,0.011,58079.0,58078.0,0.208086]
[1726216070348,0.011,58079.0,58078.0,0.25945736]
[1726216070547,0.011,58079.0,58078.0,0.208086]
[1726216070759,0.011,58079.0,58078.0,0.25945736]
[1726216071456,0.011,58079.0,58078.0,0.208086]
[1726216071961,0.011,58079.0,58078.0,0.25955029]
[1726216072164,0.011,58079.0,58078.0,0.208086]
[1726216075264,0.014,58079.0,58078.0,0.208086]
[1726216075560,0.014,58079.0,58078.0,0.27685328]
[1726216075749,0.003,58079.0,58078.0,0.27585328]
[1726216075954,0.091085,58079.0,58078.0,0.15685328]
[1726216076165,0.091085,58079.0,58078.0,0.27685328]
[1726216082855,0.005,58079.0,58078.0,0.27685328]
[1726216083262,0.005,58079.0,58078.0,0.208086]
[1726216083461,0.091085,58079.0,58078.0,0.208086]
[1726216083662,0.091085,58079.0,58078.0,0.27686326]
[1726216084362,0.091085,58079.0,58078.0,0.29414286]
[1726216084873,0.091085,58079.0,58078.0,0.2253656]
[1726216087180,0.005,58079.0,58078.0,0.2253656]
[1726216087675,0.005,58079.0,58078.0,0.3953656]
[1726216095294,0.005,58079.0,58078.0,0.46414618]
[1726216095683,0.005,58079.0,58078.0,0.3953656]
[1726216101106,0.005,58079.0,58078.0,0.49722385]
[1726216101490,0.005,58079.0,58078.0,0.58314646]
[1726216102093,0.005,58079.0,58078.0,0.94394646]
[1726216102692,0.005,58079.0,58078.0,0.84208821]
[1726216104294,0.005,58079.0,58078.0,0.7561656]
[1726216114312,0.004,58086.0,58085.0,0.086076]
[1726216114508,0.086073,58087.0,58086.0,0.086074]
[1726216114703,0.086073,58087.0,58086.0,0.1547706]
[1726216114704,0.10348566,58087.0,58086.0,0.1547706]
[1726216115202,0.086071,58089.0,58088.0,0.086069]
[1726216115403,0.086071,58089.0,58088.0,0.206069]
[1726216115602,0.086071,58089.0,58088.0,0.27475074]
[1726216116406,0.086071,58089.0,58088.0,0.206069]
[1726216116606,0.089071,58089.0,58088.0,0.207069]
[1726216117310,0.089071,58089.0,58088.0,0.208069]
[1726216123409,0.089071,58089.0,58085.0,0.23927074]
[1726216123610,0.089071,58089.0,58088.0,0.12]
[1726216125210,0.086071,58089.0,58088.0,0.206069]
[1726216126111,0.086071,58089.0,58088.0,0.207069]
[1726216127413,0.446871,58089.0,58088.0,0.207069]
[1726216128915,0.446871,58089.0,58088.0,0.001]
[1726216128916,0.532943,58089.0,58088.0,0.001]
[1726216129121,0.582343,58089.0,58088.0,0.001]
[1726216131825,0.221543,58089.0,58088.0,0.001]
[1726216132125,0.582343,58089.0,58088.0,0.001]
[1726216132318,0.496271,58089.0,58088.0,0.001]
[1726216139731,0.582343,58089.0,58088.0,0.001]
[1726216140123,0.496271,58089.0,58088.0,0.001]
[1726216144531,0.086071,58089.0,58088.0,0.001]
[1726216144731,0.086071,58089.0,58088.0,0.087071]
[1726216145039,0.086071,58089.0,58088.0,0.13855831]
[1726216145241,0.086071,58089.0,58088.0,0.257071]
[1726216145740,0.086071,58089.0,58088.0,0.30858986]
[1726216149340,0.086071,58089.0,58088.0,0.257071]
[1726216150537,0.086071,58089.0,58088.0,0.30859819]
[1726216150734,0.086071,58089.0,58088.0,0.30859935]
[1726216153034,0.0175467,58090.0,58089.0,0.08607]
[1726216153233,0.3608,58091.0,58090.0,0.086069]
[1726216153843,0.37821375,58091.0,58090.0,0.256069]
[1726216155140,0.37821375,58091.0,58090.0,0.257069]
[1726216155840,0.37821375,58091.0,58090.0,0.087069]
[1726216156737,0.37921375,58091.0,58090.0,0.088069]
[1726216159034,0.46528075,58091.0,58090.0,0.088069]
[1726216160838,0.10448075,58091.0,58090.0,0.088069]
[1726216161145,0.46528075,58091.0,58090.0,0.088069]
[1726216162444,0.10448075,58091.0,58090.0,0.088069]
[1726216162656,0.46528075,58091.0,58090.0,0.088069]
[1726216163542,0.46528075,58091.0,58090.0,0.002]
[1726216164250,0.46528075,58091.0,58090.0,0.122]
[1726216165847,0.46528075,58091.0,58090.0,0.292]
[1726216166541,0.46528075,58091.0,58090.0,0.34352835]
[1726216168851,0.46528075,58091.0,58090.0,0.292]
[1726216173548,0.46528075,58091.0,58090.0,0.34352835]
[1726216180755,0.10448075,58091.0,58090.0,0.34352835]
[1726216181061,0.46528075,58091.0,58090.0,0.34352835]
[1726216182159,0.46528075,58091.0,58090.0,0.292]
[1726216182855,0.10448075,58091.0,58090.0,0.292]
[1726216183050,0.46528075,58091.0,58090.0,0.292]
[1726216185958,0.10448075,58091.0,58090.0,0.292]
[1726216186259,0.46528075,58091.0,58090.0,0.292]
[1726216189155,0.46528075,58091.0,58090.0,0.34352835]
[1726216190263,0.46528075,58091.0,58090.0,0.05352835]
[1726216191660,0.55134775,58091.0,58090.0,0.002]
[1726216192163,0.63741475,58091.0,58090.0,0.002]
[1726216195966,0.27661475,58091.0,58090.0,0.002]
[1726216196169,0.63741475,58091.0,58090.0,0.002]
[1726216199465,0.27661475,58091.0,58090.0,0.002]
[1726216199966,0.63741475,58091.0,58090.0,0.002]
[1726216200972,0.08608,58082.0,58081.0,0.02076692]
[1726216201173,0.36513963,58082.0,58081.0,0.22684892]
[1726216201673,0.27867789,58082.0,58081.0,0.22684892]
[1726216201864,0.19259789,58082.0,58081.0,0.22684892]
[1726216202068,0.19259789,58082.0,58081.0,0.23684892]
[1726216202565,0.19359789,58082.0,58081.0,0.23784892]
[1726216203172,0.19459789,58082.0,58081.0,0.23884892]
[1726216203574,0.002,58082.0,58081.0,0.23884892]
[1726216203776,0.18458584,58082.0,58081.0,0.23884892]
[1726216204071,0.002,58082.0,58081.0,0.23884892]
[1726216206479,0.01982717,58082.0,58081.0,0.23884892]
[1726216208882,0.10590717,58082.0,58081.0,0.132]
[1726216209076,0.67278717,58082.0,58081.0,0.002]
[1726216209381,0.27813413,58082.0,58081.0,0.002]
[1726216210877,0.28273555,58082.0,58073.0,0.28944744]
[1726216211184,0.086086,58078.0,58077.0,0.12]
[1726216211371,0.26758819,58078.0,58077.0,0.12]
[1726216211577,0.49122199,58078.0,58077.0,0.12]
[1726216212376,0.26758819,58078.0,58077.0,0.12]
[1726216212875,0.26958819,58078.0,58075.0,0.08609]
[1726216213076,0.090086,58078.0,58077.0,0.12]
[1726216213276,0.26154227,58078.0,58077.0,0.12]
[1726216214081,0.17545627,58078.0,58073.0,0.0488]
[1726216214381,0.086092,58074.0,58073.0,0.0488]
[1726216214577,0.25754827,58074.0,58073.0,0.1688]
[1726216214783,0.53225627,58074.0,58070.0,0.00164]
[1726216214985,0.25286246,58073.0,58071.0,0.12]
[1726216215281,0.17145627,58072.0,58071.0,0.12]
[1726216215481,0.25755127,58072.0,58071.0,0.12]
[1726216216473,0.25955127,58072.0,58071.0,0.12]
[1726216217385,0.26255127,58072.0,58071.0,0.12]
[1726216218980,0.091095,58072.0,58071.0,0.05153722]
[1726216219179,0.091095,58072.0,58071.0,0.17153722]
[1726216220580,0.091095,58072.0,58071.0,0.12]